fUST/lending_fUST_20240601
["ID","MTS","AMOUNT","RATE_DAILY","PERIOD"]
[328361837,1717245037836,-626.29393487,0.00021817,2]
[328361840,1717245037846,-433.66505063,0.0002186,2]
[328361843,1717245037857,-395.17084481,0.0002186,2]
[328361846,1717245041164,-156.95364019,0.00015,2]
[328361847,1717245041173,-7485.78654404,0.0002186,2]
[328361848,1717245041225,-500.22961891,0.0002186,2]
[328361862,1717245042892,-7356.0895259,0.0002186,2]
[328361919,1717246232015,-156.95364019,0.00017999,2]
[328361920,1717246232026,-897.38565272,0.00019027,2]
[328361921,1717246232035,-8152.684235,0.00019028,2]
[328361922,1717246232045,-438.5820313,0.00019178,4]
[328361923,1717246232055,-166.916009,0.00019245,2]
[328361924,1717246232064,-923.61703461,0.00019589,2]
[328361925,1717246232073,-1805.10691383,0.0001976,2]
[328361926,1717246232083,-922.4720001,0.00020765,2]
[328361927,1717246232092,-177.69210073,0.000209,2]
[328361928,1717246232101,-22808.27908831,0.00021,2]
[328361952,1717246238503,-844.94594178,0.00021,7]
[328361954,1717246238513,-19505.85405822,0.00021,2]
[328362043,1717246243253,-3436.12236903,0.00021,2]
[328362044,1717246243265,-227.93207928,0.00021,2]
[328362046,1717246243276,-10000.0,0.00021,5]
[328362048,1717246243285,-4230.52290454,0.00021,2]
[328362050,1717246243295,-583.7461814,0.00021178,2]
[328362052,1717246243304,-1111.57722211,0.0002176,2]
[328362053,1717246243314,-1111.57722209,0.00021774,2]
[328362054,1717246243324,-576.14659854,0.00021789,2]
[328362059,1717246246132,-535.43062355,0.00021789,2]
[328362061,1717246246143,-1111.57722209,0.00021803,2]
[328362063,1717246246152,-74.41101516,0.00021814,2]
[328362065,1717246246164,-103.28108555,0.00021814,2]
[328362067,1717246246173,-1111.57722209,0.00021817,2]
[328362069,1717246246183,-620.0,0.0002185,3]
[328362071,1717246246192,-349.65878961,0.00021858,2]
[328362072,1717246246202,-896.7201831,0.00021858,2]
[328362074,1717246246211,-162.78996957,0.00021859,2]
[328362075,1717246246221,-1098.79690614,0.00021859,2]
[328362076,1717246246230,-500.0,0.00021859,2]
[328362077,1717246246239,-380.61699412,0.00021859,2]
[328362078,1717246246248,-500.0,0.00021859,2]
[328362079,1717246246256,-500.0,0.00021859,2]
[328362080,1717246246268,-218.26865878,0.00021859,2]
[328362081,1717246246277,-500.0,0.00021859,2]
[328362082,1717246246286,-500.0,0.00021859,2]
[328362083,1717246246295,-500.0,0.00021859,2]
[328362084,1717246246304,-227.09233795,0.00021859,2]
[328362085,1717246246314,-500.0,0.00021859,2]
[328362086,1717246246323,-500.0,0.00021859,2]
[328362087,1717246246332,-500.0,0.00021859,2]
[328362088,1717246246342,-435.64928495,0.00021859,2]
[328362089,1717246246353,-500.0,0.00021859,2]
[328362090,1717246246364,-500.0,0.00021859,2]
[328362091,1717246246373,-500.0,0.00021859,2]
[328362092,1717246246382,-500.0,0.00021859,2]
[328362093,1717246246391,-500.0,0.00021859,2]
[328362094,1717246246400,-500.0,0.00021859,2]
[328362095,1717246246409,-500.0,0.00021859,2]
[328362096,1717246246420,-500.0,0.00021859,2]
[328362097,1717246246430,-500.0,0.00021859,2]
[328362098,1717246246442,-500.0,0.00021859,2]
[328362099,1717246246452,-500.0,0.00021859,2]
[328362100,1717246246462,-380.68880802,0.00021859,2]
[328362101,1717246246471,-3974.21185785,0.0002186,7]
[328362102,1717246246482,-286.29967128,0.0002186,2]
[328362103,1717246246493,-3986.07672672,0.0002186,2]
[328362104,1717246246502,-37130.29450267,0.0002186,2]
[328362122,1717247093562,151.0,0.00030672,30]
[328362176,1717247432331,-156.95364019,0.0001999,2]
[328362177,1717247432341,-152.35072904,0.00019991,2]
[328362178,1717247432351,-128.57653271,0.00020081,2]
[328362180,1717247438246,-724.44107958,0.00020081,2]
[328362183,1717247438258,-21257.69431871,0.00020081,2]
[328362185,1717247438268,-169.644612,0.00020091,2]
[328362187,1717247438278,-171.42272,0.00020356,2]
[328362189,1717247438288,-228.08668634,0.00021,2]
[328362191,1717247438297,-939.42845355,0.00021204,2]
[328362193,1717247438307,-152.30751492,0.00021758,2]
[328362195,1717247438317,-189.69416458,0.00021758,2]
[328362197,1717247438327,-151.077,0.0002178,2]
[328362199,1717247438336,-11192.76342831,0.000218,2]
[328362201,1717247438346,-282.0,0.000218,2]
[328362204,1717247438356,-275.07948327,0.00021858,2]
[328362206,1717247438366,-961.76431124,0.00021858,2]
[328362208,1717247438377,-162.78996957,0.00021858,2]
[328362210,1717247438386,-186.03670403,0.00021858,2]
[328362212,1717247438396,-9498.09241678,0.00021858,2]
[328362214,1717247438405,-2263.49557955,0.00021858,2]
[328362216,1717247438415,-290.46540773,0.00021858,2]
[328362219,1717247438426,-179.2244186,0.00021858,2]
[328362220,1717247438435,-280.10551033,0.00021858,2]
[328362222,1717247438444,-159.40249042,0.00021858,2]
[328362224,1717247438454,-196.64466609,0.00021858,2]
[328362227,1717247438463,-240.76438741,0.00021858,2]
[328362228,1717247438472,-231.16656322,0.00021858,2]
[328362231,1717247438481,-37391.2844574,0.00021858,2]
[328362232,1717247438491,-207.8748653,0.00021858,2]
[328362235,1717247438500,-270.62354186,0.00021858,7]
[328362237,1717247438510,-500.0,0.00021859,2]
[328362238,1717247438519,-233.07478042,0.00021859,2]
[328362239,1717247438529,-165.27616833,0.00021859,2]
[328362240,1717247438539,-500.0,0.00021859,2]
[328362241,1717247438548,-253.0413105,0.00021859,2]
[328362242,1717247438558,-500.0,0.00021859,2]
[328362243,1717247438567,-177.89364008,0.00021859,2]
[328362244,1717247438577,-500.0,0.00021859,2]
[328362245,1717247438587,-500.0,0.00021859,2]
[328362246,1717247438596,-500.0,0.00021859,2]
[328362247,1717247438606,-500.0,0.00021859,2]
[328362248,1717247438615,-500.0,0.00021859,2]
[328362249,1717247438734,-500.0,0.00021859,2]
[328362250,1717247438747,-199.99999999,0.00021859,2]
[328362251,1717247438757,-391.3001725,0.00021859,2]
[328362252,1717247438767,-500.0,0.00021859,2]
[328362253,1717247438776,-500.0,0.00021859,2]
[328362254,1717247438785,-616.48215868,0.00021859,2]
[328362255,1717247438796,-500.0,0.00021859,2]
[328362256,1717247438807,-500.0,0.00021859,2]
[328362257,1717247438816,-200.0,0.00021859,2]
[328362258,1717247438826,-460.35439868,0.00021859,2]
[328362259,1717247438835,-379.87564464,0.00021859,2]
[328362260,1717247438845,-500.0,0.00021859,2]
[328362261,1717247438855,-151.0,0.00021859,2]
[328362262,1717247438865,-151.0,0.00021859,2]
[328362263,1717247438874,-151.0,0.00021859,2]
[328362264,1717247438884,-445.4837227,0.00021859,2]
[328362265,1717247438892,-151.0,0.00021859,2]
[328362266,1717247438902,-409.81967126,0.00021859,2]
[328362267,1717247438911,-151.0,0.00021859,2]
[328362268,1717247438922,-190.61508655,0.00021859,2]
[328362269,1717247438931,-151.0,0.00021859,2]
[328362270,1717247438940,-152.856031,0.00021859,2]
[328362271,1717247438950,-152.856031,0.00021859,2]
[328362272,1717247438959,-500.0,0.00021859,2]
[328362273,1717247438968,-151.0,0.00021859,2]
[328362274,1717247438979,-152.97824,0.00021859,2]
[328362275,1717247438987,-152.97824,0.00021859,2]
[328362276,1717247438996,-151.0,0.00021859,2]
[328362277,1717247439010,-272.057082,0.00021859,2]
[328362278,1717247439019,-497.55379147,0.00021859,2]
[328362279,1717247439029,-272.057082,0.00021859,2]
[328362280,1717247439038,-151.0,0.00021859,2]
[328362281,1717247439050,-488.33604888,0.00021859,2]
[328362282,1717247439059,-151.0,0.00021859,2]
[328362283,1717247439070,-560.070437,0.00021859,2]
[328362284,1717247439079,-560.070437,0.00021859,2]
[328362285,1717247439090,-379.80706025,0.00021859,2]
[328362286,1717247439100,-151.0,0.00021859,2]
[328362287,1717247439110,-151.0,0.00021859,2]
[328362288,1717247439120,-197.789993,0.00021859,2]
[328362289,1717247439131,-151.0,0.00021859,2]
[328362290,1717247439142,-500.0,0.00021859,2]
[328362291,1717247439152,-151.608477,0.00021859,2]
[328362292,1717247439161,-171.7968,0.00021859,2]
[328362293,1717247439171,-171.7968,0.00021859,2]
[328362294,1717247439181,-171.7968,0.00021859,2]
[328362295,1717247439191,-171.7968,0.00021859,2]
[328362296,1717247439201,-229.176598,0.00021859,2]
[328362297,1717247439211,-229.176598,0.00021859,2]
[328362298,1717247439221,-229.176598,0.00021859,2]
[328362299,1717247439231,-229.176598,0.00021859,2]
[328362300,1717247439241,-500.0,0.00021859,2]
[328362301,1717247439251,-151.0,0.00021859,2]
[328362302,1717247439261,-151.0,0.00021859,2]
[328362303,1717247439270,-151.0,0.00021859,2]
[328362304,1717247439281,-151.0,0.00021859,2]
[328362305,1717247439291,-500.0,0.00021859,2]
[328362306,1717247439301,-151.0,0.00021859,2]
[328362307,1717247439311,-151.0,0.00021859,2]
[328362308,1717247439320,-252.400582,0.00021859,2]
[328362309,1717247439330,-151.0,0.00021859,2]
[328362310,1717247439339,-151.0,0.00021859,2]
[328362311,1717247439349,-151.305901,0.00021859,2]
[328362312,1717247439358,-5701.3536247,0.0002186,2]
[328362313,1717247439367,-3498.03126947,0.0002186,2]
[328362314,1717247439377,-167.36965451,0.0002186,2]
[328362315,1717247439386,-155.41136811,0.0002186,2]
[328362316,1717247439396,-151.0,0.0002186,2]
[328362317,1717247439405,-151.0,0.0002186,2]
[328362318,1717247439414,-151.0,0.0002186,2]
[328362319,1717247439423,-207.011661,0.0002186,2]
[328362320,1717247439433,-151.0,0.0002186,2]
[328362321,1717247439443,-151.0,0.0002186,2]
[328362322,1717247439453,-151.0,0.0002186,2]
[328362323,1717247439463,-290.63342,0.0002186,2]
[328362324,1717247439473,-153.487367,0.0002186,2]
[328362325,1717247439483,-151.0,0.0002186,2]
[328362326,1717247439502,-151.0,0.0002186,2]
[328362327,1717247439511,-151.0,0.0002186,2]
[328362328,1717247439521,-152.856031,0.0002186,2]
[328362329,1717247439531,-152.856031,0.0002186,2]
[328362330,1717247439541,-152.856031,0.0002186,2]
[328362331,1717247439550,-152.856031,0.0002186,2]
[328362332,1717247439559,-152.856031,0.0002186,2]
[328362333,1717247439568,-152.856031,0.0002186,2]
[328362334,1717247439578,-151.0,0.0002186,2]
[328362335,1717247439588,-294.02953385,0.0002186,2]
[328362336,1717247439597,-152.97824,0.0002186,2]
[328362337,1717247439607,-152.97824,0.0002186,2]
[328362338,1717247439617,-152.97824,0.0002186,2]
[328362339,1717247439626,-152.97824,0.0002186,2]
[328362340,1717247439636,-152.97824,0.0002186,2]
[328362341,1717247439646,-152.97824,0.0002186,2]
[328362342,1717247439656,-151.0,0.0002186,2]
[328362343,1717247439665,-151.0,0.0002186,2]
[328362344,1717247439674,-151.0,0.0002186,2]
[328362345,1717247439684,-272.057082,0.0002186,2]
[328362346,1717247439693,-272.057082,0.0002186,2]
[328362347,1717247439702,-272.057082,0.0002186,2]
[328362348,1717247439712,-272.057082,0.0002186,2]
[328362349,1717247439722,-272.057082,0.0002186,2]
[328362350,1717247439731,-272.057082,0.0002186,2]
[328362351,1717247439740,-151.0,0.0002186,2]
[328362352,1717247439749,-151.0,0.0002186,2]
[328362353,1717247439759,-560.070437,0.0002186,2]
[328362354,1717247439768,-560.070437,0.0002186,2]
[328362355,1717247439778,-560.070437,0.0002186,2]
[328362356,1717247439787,-560.070437,0.0002186,2]
[328362357,1717247439796,-560.070437,0.0002186,2]
[328362358,1717247439806,-560.070437,0.0002186,2]
[328362359,1717247439816,-560.070437,0.0002186,2]
[328362360,1717247439825,-560.070437,0.0002186,2]
[328362361,1717247439835,-151.0,0.0002186,2]
[328362362,1717247439845,-151.0,0.0002186,2]
[328362363,1717247439854,-151.0,0.0002186,2]
[328362364,1717247439865,-151.0,0.0002186,2]
[328362365,1717247439876,-151.0,0.0002186,2]
[328362366,1717247439886,-151.0,0.0002186,2]
[328362367,1717247439896,-151.0,0.0002186,2]
[328362368,1717247439906,-151.554469,0.0002186,2]
[328362369,1717247439916,-171.7968,0.0002186,2]
[328362370,1717247439926,-171.7968,0.0002186,2]
[328362371,1717247439936,-171.7968,0.0002186,2]
[328362372,1717247439946,-171.7968,0.0002186,2]
[328362373,1717247439956,-171.7968,0.0002186,2]
[328362374,1717247439966,-171.7968,0.0002186,2]
[328362375,1717247439976,-229.176598,0.0002186,2]
[328362376,1717247440069,-229.176598,0.0002186,2]
[328362377,1717247440080,-229.176598,0.0002186,2]
[328362378,1717247440090,-229.176598,0.0002186,2]
[328362379,1717247440100,-229.176598,0.0002186,2]
[328362380,1717247440110,-229.176598,0.0002186,2]
[328362381,1717247440119,-151.0,0.0002186,2]
[328362382,1717247440129,-151.0,0.0002186,2]
[328362383,1717247440139,-151.0,0.0002186,2]
[328362384,1717247440149,-151.0,0.0002186,2]
[328362385,1717247440159,-151.0,0.0002186,2]
[328362386,1717247440169,-151.0,0.0002186,2]
[328362387,1717247440178,-151.0,0.0002186,2]
[328362388,1717247440188,-151.0,0.0002186,2]
[328362389,1717247440197,-488.0,0.000219,2]
[328362390,1717247440207,-422.47297089,0.00021915,7]
[328362391,1717247440217,-551.32951369,0.00021915,2]
[328362392,1717247440227,-7907.32840747,0.00021915,2]
[328362393,1717247440236,-1721.32150762,0.00021915,2]
[328362394,1717247440245,-151.0,0.00021915,2]
[328362395,1717247440255,-151.0,0.00021915,2]
[328362396,1717247440265,-151.0,0.00021915,2]
[328362397,1717247440274,-152.856031,0.00021915,2]
[328362398,1717247440283,-152.856031,0.00021915,2]
[328362399,1717247440293,-152.97824,0.00021915,2]
[328362400,1717247440302,-152.97824,0.00021915,2]
[328362401,1717247440312,-151.0,0.00021915,2]
[328362402,1717247440322,-272.057082,0.00021915,2]
[328362403,1717247440332,-272.057082,0.00021915,2]
[328362404,1717247440341,-560.070437,0.00021915,2]
[328362405,1717247440352,-560.070437,0.00021915,2]
[328362406,1717247440362,-151.0,0.00021915,2]
[328362407,1717247440372,-171.7968,0.00021915,2]
[328362408,1717247440382,-171.7968,0.00021915,2]
[328362410,1717247440392,-229.176598,0.00021915,2]
[328362412,1717247440402,-229.176598,0.00021915,2]
[328362416,1717247440412,-151.0,0.00021915,2]
[328362420,1717247440421,-151.0,0.00021915,2]
[328362424,1717247440431,-1987.10592893,0.00021917,7]
[328362426,1717247440440,-231.15018088,0.00021917,2]
[328362429,1717247440449,-447.39403313,0.00021917,2]
[328362432,1717247440459,-500.0,0.00021917,2]
[328362434,1717247440469,-500.0,0.00021917,2]
[328362435,1717247440478,-500.0,0.00021917,2]
[328362437,1717247440488,-500.0,0.00021917,2]
[328362439,1717247440497,-500.0,0.00021917,2]
[328362440,1717247440506,-500.0,0.00021917,2]
[328362442,1717247440515,-647.44,0.00021917,2]
[328362444,1717247440524,-632.62,0.00021917,2]
[328362445,1717247440533,-645.18539658,0.00021917,2]
[328362447,1717247440542,-500.0,0.00021917,2]
[328362449,1717247440551,-500.0,0.00021917,2]
[328362450,1717247440560,-500.0,0.00021917,2]
[328362451,1717247440569,-500.0,0.00021917,2]
[328362452,1717247440579,-500.0,0.00021917,2]
[328362453,1717247440588,-500.0,0.00021917,2]
[328362454,1717247440597,-574.49,0.00021917,2]
[328362455,1717247440606,-500.0,0.00021917,2]
[328362456,1717247440615,-500.0,0.00021917,2]
[328362457,1717247440624,-709.87,0.00021917,2]
[328362458,1717247440635,-500.0,0.00021917,2]
[328362459,1717247440644,-500.0,0.00021917,2]
[328362460,1717247440654,-500.0,0.00021917,2]
[328362462,1717247440663,-500.0,0.00021917,2]
[328362463,1717247440672,-162.31546849,0.00021917,2]
[328362464,1717247440681,-500.0,0.00021917,2]
[328362465,1717247440691,-543.92834315,0.00021917,2]
[328362466,1717247440700,-500.0,0.00021917,2]
[328362467,1717247440710,-151.0,0.00021917,2]
[328362468,1717247440720,-151.0,0.00021917,2]
[328362469,1717247440729,-151.0,0.00021917,2]
[328362470,1717247440738,-151.0,0.00021917,2]
[328362471,1717247440747,-500.0,0.00021917,2]
[328362472,1717247440756,-151.0,0.00021917,2]
[328362473,1717247440766,-500.0,0.00021917,2]
[328362475,1717247440775,-500.0,0.00021917,2]
[328362476,1717247440784,-500.0,0.00021917,2]
[328362478,1717247440793,-500.0,0.00021917,2]
[328362479,1717247440802,-1292.19,0.00021917,2]
[328362480,1717247440811,-250.0,0.00021917,2]
[328362481,1717247440820,-500.0,0.00021917,2]
[328362482,1717247440829,-500.0,0.00021917,2]
[328362483,1717247440838,-500.0,0.00021917,2]
[328362484,1717247440847,-575.84,0.00021917,2]
[328362485,1717247440857,-500.0,0.00021917,2]
[328362486,1717247440866,-625.89,0.00021917,2]
[328362487,1717247440875,-151.0,0.00021917,2]
[328362488,1717247440885,-151.0,0.00021917,2]
[328362489,1717247440894,-151.0,0.00021917,2]
[328362490,1717247440903,-265.270841,0.00021917,2]
[328362491,1717247440912,-500.0,0.00021917,2]
[328362492,1717247440922,-538.97,0.00021917,2]
[328362493,1717247440931,-500.0,0.00021917,2]
[328362494,1717247440941,-500.0,0.00021917,2]
[328362495,1717247440951,-500.0,0.00021917,2]
[328362496,1717247440963,-500.0,0.00021917,2]
[328362497,1717247440972,-500.0,0.00021917,2]
[328362498,1717247440981,-500.0,0.00021917,2]
[328362499,1717247440991,-500.0,0.00021917,2]
[328362500,1717247441000,-741.06,0.00021917,2]
[328362501,1717247441014,-500.0,0.00021917,2]
[328362502,1717247441023,-527.48,0.00021917,2]
[328362503,1717247441032,-518.08472462,0.00021917,2]
[328362504,1717247441042,-500.0,0.00021917,2]
[328362505,1717247441053,-500.0,0.00021917,2]
[328362506,1717247441063,-500.0,0.00021917,2]
[328362507,1717247441074,-560.0,0.00021917,2]
[328362508,1717247441084,-500.0,0.00021917,2]
[328362509,1717247441094,-519.04959076,0.00021917,2]
[328362510,1717247441104,-634.24,0.00021917,2]
[328362511,1717247441112,-500.0,0.00021917,2]
[328362512,1717247441121,-596.53081417,0.00021917,2]
[328362513,1717247441130,-500.0,0.00021917,2]
[328362514,1717247441140,-500.0,0.00021917,2]
[328362515,1717247441149,-500.0,0.00021917,2]
[328362516,1717247441158,-500.0,0.00021917,2]
[328362517,1717247441167,-500.0,0.00021917,2]
[328362518,1717247441176,-1312.09,0.00021917,2]
[328362519,1717247441186,-516.29,0.00021917,2]
[328362520,1717247441268,-500.0,0.00021917,2]
[328362521,1717247441277,-500.0,0.00021917,2]
[328362522,1717247441286,-500.0,0.00021917,2]
[328362523,1717247441296,-500.0,0.00021917,2]
[328362524,1717247441305,-500.0,0.00021917,2]
[328362525,1717247441314,-500.0,0.00021917,2]
[328362526,1717247441323,-576.01,0.00021917,2]
[328362527,1717247441333,-1000.0,0.00021917,2]
[328362528,1717247441343,-500.0,0.00021917,2]
[328362529,1717247441352,-916.87,0.00021917,2]
[328362530,1717247441361,-283.67823095,0.00021917,2]
[328362531,1717247441371,-500.0,0.00021917,2]
[328362532,1717247441383,-500.0,0.00021917,2]
[328362533,1717247441392,-500.0,0.00021917,2]
[328362534,1717247441401,-500.0,0.00021917,2]
[328362535,1717247441410,-500.0,0.00021917,2]
[328362536,1717247441420,-500.0,0.00021917,2]
[328362537,1717247441429,-500.0,0.00021917,2]
[328362538,1717247441438,-500.0,0.00021917,2]
[328362539,1717247441447,-500.0,0.00021917,2]
[328362540,1717247441457,-879.48,0.00021917,2]
[328362541,1717247441466,-1282.3,0.00021917,2]
[328362542,1717247441475,-500.0,0.00021917,2]
[328362543,1717247441484,-500.0,0.00021917,2]
[328362544,1717247441493,-1267.66,0.00021917,2]
[328362545,1717247441502,-500.0,0.00021917,2]
[328362546,1717247441511,-500.0,0.00021917,2]
[328362547,1717247441520,-500.0,0.00021917,2]
[328362548,1717247441530,-500.0,0.00021917,2]
[328362550,1717247441539,-500.0,0.00021917,2]
[328362551,1717247441548,-500.0,0.00021917,2]
[328362552,1717247441558,-500.0,0.00021917,2]
[328362553,1717247441567,-500.0,0.00021917,2]
[328362554,1717247441576,-1335.24,0.00021917,2]
[328362555,1717247441586,-500.0,0.00021917,2]
[328362556,1717247441595,-558.31,0.00021917,2]
[328362557,1717247441604,-500.0,0.00021917,2]
[328362558,1717247441613,-500.0,0.00021917,2]
[328362559,1717247441622,-500.0,0.00021917,2]
[328362560,1717247441632,-726.06,0.00021917,2]
[328362561,1717247441641,-500.0,0.00021917,2]
[328362562,1717247441651,-527.57570399,0.00021917,2]
[328362563,1717247441662,-500.0,0.00021917,2]
[328362564,1717247441673,-500.0,0.00021917,2]
[328362565,1717247441683,-622.77,0.00021917,2]
[328362566,1717247441693,-684.32,0.00021917,2]
[328362567,1717247441703,-2114.63,0.00021917,2]
[328362568,1717247441714,-727.82,0.00021917,2]
[328362569,1717247441723,-521.24327261,0.00021917,2]
[328362570,1717247441733,-889.19,0.00021917,2]
[328362571,1717247441742,-500.0,0.00021917,2]
[328362572,1717247441752,-546.99,0.00021917,2]
[328362573,1717247441764,-500.0,0.00021917,2]
[328362574,1717247441773,-500.0,0.00021917,2]
[328362575,1717247441797,-603.92724432,0.00021917,2]
[328362576,1717247441814,-820.63,0.00021917,2]
[328362577,1717247441833,-758.96,0.00021917,2]
[328362578,1717247441853,-500.0,0.00021917,2]
[328362579,1717247441873,-500.0,0.00021917,2]
[328362580,1717247441890,-500.0,0.00021917,2]
[328362581,1717247441909,-500.0,0.00021917,2]
[328362582,1717247441923,-500.0,0.00021917,2]
[328362583,1717247441939,-500.0,0.00021917,2]
[328362584,1717247441957,-615.67,0.00021917,2]
[328362585,1717247441975,-500.0,0.00021917,2]
[328362586,1717247441987,-500.0,0.00021917,2]
[328362587,1717247442006,-500.0,0.00021917,2]
[328362588,1717247442022,-640.96,0.00021917,2]
[328362589,1717247442037,-839.32,0.00021917,2]
[328362590,1717247442051,-500.0,0.00021917,2]
[328362591,1717247442065,-670.9,0.00021917,2]
[328362592,1717247442079,-2401.68,0.00021917,2]
[328362593,1717247442096,-500.0,0.00021917,2]
[328362594,1717247442112,-500.0,0.00021917,2]
[328362595,1717247442126,-500.0,0.00021917,2]
[328362596,1717247442141,-536.45254485,0.00021917,2]
[328362597,1717247442155,-447.1224932,0.00021917,2]
[328362598,1717247442169,-303.86,0.00021917,2]
[328362599,1717247442184,-594.77495063,0.00021917,2]
[328362600,1717247442198,-500.0,0.00021917,2]
[328362601,1717247442213,-525.9388457,0.00021917,2]
[328362602,1717247442228,-747.11,0.00021917,2]
[328362603,1717247442243,-716.15,0.00021917,2]
[328362604,1717247442259,-500.0,0.00021917,2]
[328362605,1717247442275,-1163.39,0.00021917,2]
[328362606,1717247442288,-1572.6,0.00021917,2]
[328362607,1717247442304,-500.0,0.00021917,2]
[328362608,1717247442319,-500.0,0.00021917,2]
[328362609,1717247442334,-500.0,0.00021917,2]
[328362610,1717247442349,-500.0,0.00021917,2]
[328362611,1717247442364,-3505.82,0.00021917,2]
[328362612,1717247442381,-521.444259,0.00021917,2]
[328362613,1717247442395,-3009.72,0.00021917,2]
[328362614,1717247442410,-500.0,0.00021917,2]
[328362615,1717247442425,-608.67,0.00021917,2]
[328362616,1717247442439,-610.13,0.00021917,2]
[328362617,1717247442454,-500.0,0.00021917,2]
[328362618,1717247442470,-500.0,0.00021917,2]
[328362619,1717247442485,-500.0,0.00021917,2]
[328362620,1717247442501,-500.0,0.00021917,2]
[328362621,1717247442515,-610.6406243,0.00021917,2]
[328362622,1717247442530,-1706.53,0.00021917,2]
[328362623,1717247442545,-500.0,0.00021917,2]
[328362624,1717247442560,-616.91,0.00021917,2]
[328362625,1717247442574,-227.694162,0.00021917,2]
[328362626,1717247442589,-500.0,0.00021917,2]
[328362627,1717247442600,-500.0,0.00021917,2]
[328362628,1717247442704,-631.29,0.00021917,2]
[328362629,1717247442753,-664.14,0.00021917,2]
[328362630,1717247442763,-576.8916337,0.00021917,2]
[328362631,1717247442772,-500.0,0.00021917,2]
[328362632,1717247442781,-338.5007288,0.00021917,2]
[328362633,1717247442806,-161.4992712,0.00021917,2]
[328362634,1717247442816,-500.0,0.00021917,2]
[328362636,1717247442825,-500.0,0.00021917,2]
[328362638,1717247442834,-500.0,0.00021917,2]
[328362639,1717247442843,-1161.61,0.00021917,2]
[328362641,1717247442853,-694.99,0.00021917,2]
[328362644,1717247442862,-500.0,0.00021917,2]
[328362647,1717247442871,-500.0,0.00021917,2]
[328362649,1717247442881,-500.0,0.00021917,2]
[328362650,1717247442890,-152.856031,0.00021917,2]
[328362653,1717247442899,-500.0,0.00021917,2]
[328362655,1717247442909,-152.856031,0.00021917,2]
[328362656,1717247442918,-152.856031,0.00021917,2]
[328362658,1717247442927,-500.0,0.00021917,2]
[328362660,1717247442936,-152.856031,0.00021917,2]
[328362662,1717247442945,-147.9766048,0.00021917,2]
[328362720,1717247443713,-4.8794262,0.00021917,2]
[328362722,1717247443723,-2015.32,0.00021917,2]
[328362725,1717247443733,-152.856031,0.00021917,2]
[328362727,1717247443743,-152.856031,0.00021917,2]
[328362729,1717247443752,-500.0,0.00021917,2]
[328362731,1717247443762,-152.856031,0.00021917,2]
[328362732,1717247443771,-152.856031,0.00021917,2]
[328362734,1717247443780,-152.856039,0.00021917,2]
[328362737,1717247443790,-500.0,0.00021917,2]
[328362739,1717247443799,-500.0,0.00021917,2]
[328362740,1717247443808,-500.0,0.00021917,2]
[328362742,1717247443817,-500.0,0.00021917,2]
[328362745,1717247443827,-500.0,0.00021917,2]
[328362747,1717247443836,-500.0,0.00021917,2]
[328362749,1717247443845,-500.0,0.00021917,2]
[328362751,1717247443855,-1489.54,0.00021917,2]
[328362753,1717247443864,-500.0,0.00021917,2]
[328362755,1717247443873,-500.0,0.00021917,2]